Workbook

Sheet Podaci
B1: Podaci o korisnicima (kupcima)
A3: R. br. | B3: Ime i prezime | C3: Ulica | D3: Broj stana | E3: Mesto | F3: Telefon | G3: Mobilni telefon | H3: E-mail | I3: WWW adresa | J3: Napomena
A4: 1 | B4: Miroslav Popović | C4: Rade Končara | D4: 9 | E4: Donji Tavankut
A5: 2 | B5: Strahinja Arsić | C5: Gornji Tavankut | D5: 108 | E5: Gornji Tavankut
A6: 3 | B6: Predrag Arsić
A7: 4 | B7: Nenad Arsić
A8: 5
A9: 6
A10: 7
A11: 8
A12: 9
A13: 10
A14: 11
A15: 12
A16: 13
A17: 14
A18: 15
A19: 16
A20: 17
A21: 18
A22: 19
A23: 20
A24: 21
A25: 22
A26: 23
A27: 24
A28: 25
A29: 26
A30: 27
A31: 28
A32: 29
A33: 30
A34: 31
A35: 32
A36: 33
A37: 34
A38: 35
A39: 36
A40: 37
A41: 38
A42: 39
A43: 40
A44: 41
A45: 42
A46: 43
A47: 44
A48: 45
A49: 46
A50: 47
A51: 48
A52: 49
A53: 50
A54: 51
A55: 52
A56: 53
A57: 54
A58: 55
A59: 56
A60: 57
A61: 58
A62: 59
A63: 60
A64: 61
A65: 62
A66: 63
A67: 64
A68: 65
A69: 66
A70: 67
A71: 68
A72: 69
A73: 70
A74: 71
A75: 72
A76: 73
A77: 74
A78: 75
A79: 76
A80: 77
A81: 78
A82: 79
A83: 80
A84: 81
A85: 82
A86: 83
A87: 84
A88: 85
A89: 86
A90: 87
A91: 88
A92: 89
A93: 90
A94: 91
A95: 92
A96: 93
A97: 94
A98: 95
A99: 96
A100: 97
A101: 98
A102: 99
A103: 100

Sheet Promet
B1: Podaci o dnevnoj aktivnosti | G1: S
G2: =SUM(G4:G103) -> 24 | H2: =SUM(H4:H103) -> 130100 | I2: 342261 | J2: 23100
A3: R. br. | B3: Datum | C3: Ime i prezime (kupac) | D3: ID Artikla | E3: Artikal | F3: Cena | G3: Kol | H3: Ukupno | I3: Plaćeno | J3: Duguje | K3: Napomena
A4: 1 | B4: 2016-01-25 | C4: Miroslav Popović | D4: 1 | E4: =IF(ISNUMBER(D4), VLOOKUP(D4, Tablica2[], 2, FALSE), "") -> Bukva - drvo | F4: =IF(ISNUMBER(D4),VLOOKUP(D4,Tablica2[],3,FALSE),"") -> 4700 | G4: 2 | H4: =IF(AND(F4<>"",G4<>""),F4*G4,"") -> 9400 | I4: 9000 | J4: =IF(AND(F4<>"",H4<>""),H4-I4,"") -> 400
A5: 2 | B5: 2016-10-28 | C5: Strahinja Arsić | D5: 3 | E5: =IF(ISNUMBER(D5), VLOOKUP(D5, Tablica2[], 2, FALSE), "") -> Hrast - drvo | F5: =IF(ISNUMBER(D5),VLOOKUP(D5,Tablica2[],3,FALSE),"") -> 4700 | G5: 5 | H5: 23500 | I5: 23000 | J5: 500
A6: 3 | B6: 2010-12-31 | C6: Predrag Arsić | D6: 4 | E6: =IF(ISNUMBER(D6), VLOOKUP(D6, Tablica2[], 2, FALSE), "") -> Paletna bukva - drvo | F6: =IF(ISNUMBER(D6),VLOOKUP(D6,Tablica2[],3,FALSE),"") -> 6500 | G6: 10 | H6: 65000 | I6: 39000 | J6: 26000
A7: 4 | B7: 2015-01-31 | C7: Nenad Arsić | D7: 2 | E7: =IF(ISNUMBER(D7), VLOOKUP(D7, Tablica2[], 2, FALSE), "") -> Bagrem - drvo | F7: =IF(ISNUMBER(D7),VLOOKUP(D7,Tablica2[],3,FALSE),"") -> 4600 | G7: 7 | H7: 32200 | I7: 36000 | J7: -3800
A8: 5 | B8: 2017-03-01 | C8: Miroslav Popović | D8: 3 | E8: =IF(ISNUMBER(D8), VLOOKUP(D8, Tablica2[], 2, FALSE), "") -> Hrast - drvo | I8: 12500
A9: 6 | B9: 2018-12-31 | C9: Miroslav Popović | D9: 1 | E9: =IF(ISNUMBER(D9), VLOOKUP(D9, Tablica2[], 2, FALSE), "") -> Bukva - drvo | I9: 18800
A10: 7 | C10: Nenad Arsić | D10: 4 | E10: =IF(ISNUMBER(D10), VLOOKUP(D10, Tablica2[], 2, FALSE), "") -> Paletna bukva - drvo | I10: 45000
A11: 8 | C11: Predrag Arsić | D11: 1 | E11: =IF(ISNUMBER(D11), VLOOKUP(D11, Tablica2[], 2, FALSE), "") -> Bukva - drvo | I11: 28200
A12: 9 | C12: Strahinja Arsić | D12: 2 | E12: =IF(ISNUMBER(D12), VLOOKUP(D12, Tablica2[], 2, FALSE), "") -> Bagrem - drvo | I12: 13000
A13: 10 | C13: Miroslav Popović | D13: 3 | E13: =IF(ISNUMBER(D13), VLOOKUP(D13, Tablica2[], 2, FALSE), "") -> Hrast - drvo | I13: 9400
A14: 11 | C14: Predrag Arsić | D14: 2 | E14: =IF(ISNUMBER(D14), VLOOKUP(D14, Tablica2[], 2, FALSE), "") -> Bagrem - drvo | I14: 11500
A15: 12 | C15: Slavko Benčik | D15: 3 | E15: =IF(ISNUMBER(D15), VLOOKUP(D15, Tablica2[], 2, FALSE), "") -> Hrast - drvo | I15: 35000
A16: 13 | C16: Strahinja Arsić | D16: 5 | E16: =IF(ISNUMBER(D16), VLOOKUP(D16, Tablica2[], 2, FALSE), "") -> Ćumur | I16: 5855
A17: 14 | C17: Petar Petrović | D17: 4 | E17: =IF(ISNUMBER(D17), VLOOKUP(D17, Tablica2[], 2, FALSE), "") -> Paletna bukva - drvo | I17: 19500
A18: 15 | C18: Marko Marković | D18: 6 | E18: =IF(ISNUMBER(D18), VLOOKUP(D18, Tablica2[], 2, FALSE), "") -> Pesak | I18: 17854
A19: 16 | C19: Petar Petrović | D19: 3 | E19: =IF(ISNUMBER(D19), VLOOKUP(D19, Tablica2[], 2, FALSE), "") -> Hrast - drvo | I19: 18652
A20: 17 | E20: =IF(ISNUMBER(D20), VLOOKUP(D20, Tablica2[], 2, FALSE), "") -> 
A21: 18 | E21: =IF(ISNUMBER(D21), VLOOKUP(D21, Tablica2[], 2, FALSE), "") -> 
A22: 19 | E22: =IF(ISNUMBER(D22), VLOOKUP(D22, Tablica2[], 2, FALSE), "") -> 
A23: 20 | E23: =IF(ISNUMBER(D23), VLOOKUP(D23, Tablica2[], 2, FALSE), "") -> 
A24: 21 | E24: =IF(ISNUMBER(D24), VLOOKUP(D24, Tablica2[], 2, FALSE), "") -> 
A25: 22 | E25: =IF(ISNUMBER(D25), VLOOKUP(D25, Tablica2[], 2, FALSE), "") -> 
A26: 23 | E26: =IF(ISNUMBER(D26), VLOOKUP(D26, Tablica2[], 2, FALSE), "") -> 
A27: 24 | E27: =IF(ISNUMBER(D27), VLOOKUP(D27, Tablica2[], 2, FALSE), "") -> 
A28: 25 | E28: =IF(ISNUMBER(D28), VLOOKUP(D28, Tablica2[], 2, FALSE), "") -> 
A29: 26 | E29: =IF(ISNUMBER(D29), VLOOKUP(D29, Tablica2[], 2, FALSE), "") -> 
A30: 27 | E30: =IF(ISNUMBER(D30), VLOOKUP(D30, Tablica2[], 2, FALSE), "") -> 
A31: 28 | E31: =IF(ISNUMBER(D31), VLOOKUP(D31, Tablica2[], 2, FALSE), "") -> 
A32: 29 | E32: =IF(ISNUMBER(D32), VLOOKUP(D32, Tablica2[], 2, FALSE), "") -> 
A33: 30 | E33: =IF(ISNUMBER(D33), VLOOKUP(D33, Tablica2[], 2, FALSE), "") -> 
A34: 31 | E34: =IF(ISNUMBER(D34), VLOOKUP(D34, Tablica2[], 2, FALSE), "") -> 
A35: 32 | E35: =IF(ISNUMBER(D35), VLOOKUP(D35, Tablica2[], 2, FALSE), "") -> 
A36: 33 | E36: =IF(ISNUMBER(D36), VLOOKUP(D36, Tablica2[], 2, FALSE), "") -> 
A37: 34 | E37: =IF(ISNUMBER(D37), VLOOKUP(D37, Tablica2[], 2, FALSE), "") -> 
A38: 35 | E38: =IF(ISNUMBER(D38), VLOOKUP(D38, Tablica2[], 2, FALSE), "") -> 
A39: 36 | E39: =IF(ISNUMBER(D39), VLOOKUP(D39, Tablica2[], 2, FALSE), "") -> 
A40: 37 | E40: =IF(ISNUMBER(D40), VLOOKUP(D40, Tablica2[], 2, FALSE), "") -> 
A41: 38 | E41: =IF(ISNUMBER(D41), VLOOKUP(D41, Tablica2[], 2, FALSE), "") -> 
A42: 39 | E42: =IF(ISNUMBER(D42), VLOOKUP(D42, Tablica2[], 2, FALSE), "") -> 
A43: 40 | E43: =IF(ISNUMBER(D43), VLOOKUP(D43, Tablica2[], 2, FALSE), "") -> 
A44: 41 | E44: =IF(ISNUMBER(D44), VLOOKUP(D44, Tablica2[], 2, FALSE), "") -> 
A45: 42 | E45: =IF(ISNUMBER(D45), VLOOKUP(D45, Tablica2[], 2, FALSE), "") -> 
A46: 43 | E46: =IF(ISNUMBER(D46), VLOOKUP(D46, Tablica2[], 2, FALSE), "") -> 
A47: 44 | E47: =IF(ISNUMBER(D47), VLOOKUP(D47, Tablica2[], 2, FALSE), "") -> 
A48: 45 | E48: =IF(ISNUMBER(D48), VLOOKUP(D48, Tablica2[], 2, FALSE), "") -> 
A49: 46 | E49: =IF(ISNUMBER(D49), VLOOKUP(D49, Tablica2[], 2, FALSE), "") -> 
A50: 47 | E50: =IF(ISNUMBER(D50), VLOOKUP(D50, Tablica2[], 2, FALSE), "") -> 
A51: 48 | E51: =IF(ISNUMBER(D51), VLOOKUP(D51, Tablica2[], 2, FALSE), "") -> 
A52: 49 | E52: =IF(ISNUMBER(D52), VLOOKUP(D52, Tablica2[], 2, FALSE), "") -> 
A53: 50 | E53: =IF(ISNUMBER(D53), VLOOKUP(D53, Tablica2[], 2, FALSE), "") -> 
A54: 51 | E54: =IF(ISNUMBER(D54), VLOOKUP(D54, Tablica2[], 2, FALSE), "") -> 
A55: 52 | E55: =IF(ISNUMBER(D55), VLOOKUP(D55, Tablica2[], 2, FALSE), "") -> 
A56: 53 | E56: =IF(ISNUMBER(D56), VLOOKUP(D56, Tablica2[], 2, FALSE), "") -> 
A57: 54 | E57: =IF(ISNUMBER(D57), VLOOKUP(D57, Tablica2[], 2, FALSE), "") -> 
A58: 55 | E58: =IF(ISNUMBER(D58), VLOOKUP(D58, Tablica2[], 2, FALSE), "") -> 
A59: 56 | E59: =IF(ISNUMBER(D59), VLOOKUP(D59, Tablica2[], 2, FALSE), "") -> 
A60: 57 | E60: =IF(ISNUMBER(D60), VLOOKUP(D60, Tablica2[], 2, FALSE), "") -> 
A61: 58 | E61: =IF(ISNUMBER(D61), VLOOKUP(D61, Tablica2[], 2, FALSE), "") -> 
A62: 59 | E62: =IF(ISNUMBER(D62), VLOOKUP(D62, Tablica2[], 2, FALSE), "") -> 
A63: 60 | E63: =IF(ISNUMBER(D63), VLOOKUP(D63, Tablica2[], 2, FALSE), "") -> 
A64: 61 | E64: =IF(ISNUMBER(D64), VLOOKUP(D64, Tablica2[], 2, FALSE), "") -> 
A65: 62 | E65: =IF(ISNUMBER(D65), VLOOKUP(D65, Tablica2[], 2, FALSE), "") -> 
A66: 63 | E66: =IF(ISNUMBER(D66), VLOOKUP(D66, Tablica2[], 2, FALSE), "") -> 
A67: 64 | E67: =IF(ISNUMBER(D67), VLOOKUP(D67, Tablica2[], 2, FALSE), "") -> 
A68: 65 | E68: =IF(ISNUMBER(D68), VLOOKUP(D68, Tablica2[], 2, FALSE), "") ->  | H68: =IF(AND(F68<>"",G68<>""),F68*G68,"") ->  | J68: =IF(AND(F68<>"",H68<>""),H68-I68,"") -> 
A69: 66 | E69: =IF(ISNUMBER(D69), VLOOKUP(D69, Tablica2[], 2, FALSE), "") -> 
A70: 67 | E70: =IF(ISNUMBER(D70), VLOOKUP(D70, Tablica2[], 2, FALSE), "") -> 
A71: 68 | E71: =IF(ISNUMBER(D71), VLOOKUP(D71, Tablica2[], 2, FALSE), "") -> 
A72: 69 | E72: =IF(ISNUMBER(D72), VLOOKUP(D72, Tablica2[], 2, FALSE), "") -> 
A73: 70 | E73: =IF(ISNUMBER(D73), VLOOKUP(D73, Tablica2[], 2, FALSE), "") -> 
A74: 71 | E74: =IF(ISNUMBER(D74), VLOOKUP(D74, Tablica2[], 2, FALSE), "") -> 
A75: 72 | E75: =IF(ISNUMBER(D75), VLOOKUP(D75, Tablica2[], 2, FALSE), "") -> 
A76: 73 | E76: =IF(ISNUMBER(D76), VLOOKUP(D76, Tablica2[], 2, FALSE), "") -> 
A77: 74 | E77: =IF(ISNUMBER(D77), VLOOKUP(D77, Tablica2[], 2, FALSE), "") -> 
A78: 75 | E78: =IF(ISNUMBER(D78), VLOOKUP(D78, Tablica2[], 2, FALSE), "") -> 
A79: 76 | E79: =IF(ISNUMBER(D79), VLOOKUP(D79, Tablica2[], 2, FALSE), "") -> 
A80: 77 | E80: =IF(ISNUMBER(D80), VLOOKUP(D80, Tablica2[], 2, FALSE), "") -> 
A81: 78 | E81: =IF(ISNUMBER(D81), VLOOKUP(D81, Tablica2[], 2, FALSE), "") -> 
A82: 79 | E82: =IF(ISNUMBER(D82), VLOOKUP(D82, Tablica2[], 2, FALSE), "") -> 
A83: 80 | E83: =IF(ISNUMBER(D83), VLOOKUP(D83, Tablica2[], 2, FALSE), "") -> 
A84: 81 | E84: =IF(ISNUMBER(D84), VLOOKUP(D84, Tablica2[], 2, FALSE), "") -> 
A85: 82 | E85: =IF(ISNUMBER(D85), VLOOKUP(D85, Tablica2[], 2, FALSE), "") -> 
A86: 83 | E86: =IF(ISNUMBER(D86), VLOOKUP(D86, Tablica2[], 2, FALSE), "") -> 
A87: 84 | E87: =IF(ISNUMBER(D87), VLOOKUP(D87, Tablica2[], 2, FALSE), "") -> 
A88: 85 | E88: =IF(ISNUMBER(D88), VLOOKUP(D88, Tablica2[], 2, FALSE), "") -> 
A89: 86 | E89: =IF(ISNUMBER(D89), VLOOKUP(D89, Tablica2[], 2, FALSE), "") -> 
A90: 87 | E90: =IF(ISNUMBER(D90), VLOOKUP(D90, Tablica2[], 2, FALSE), "") -> 
A91: 88 | E91: =IF(ISNUMBER(D91), VLOOKUP(D91, Tablica2[], 2, FALSE), "") -> 
A92: 89 | E92: =IF(ISNUMBER(D92), VLOOKUP(D92, Tablica2[], 2, FALSE), "") -> 
A93: 90 | E93: =IF(ISNUMBER(D93), VLOOKUP(D93, Tablica2[], 2, FALSE), "") -> 
A94: 91 | E94: =IF(ISNUMBER(D94), VLOOKUP(D94, Tablica2[], 2, FALSE), "") -> 
A95: 92 | E95: =IF(ISNUMBER(D95), VLOOKUP(D95, Tablica2[], 2, FALSE), "") -> 
A96: 93 | E96: =IF(ISNUMBER(D96), VLOOKUP(D96, Tablica2[], 2, FALSE), "") -> 
A97: 94 | E97: =IF(ISNUMBER(D97), VLOOKUP(D97, Tablica2[], 2, FALSE), "") -> 
A98: 95 | E98: =IF(ISNUMBER(D98), VLOOKUP(D98, Tablica2[], 2, FALSE), "") -> 
A99: 96 | E99: =IF(ISNUMBER(D99), VLOOKUP(D99, Tablica2[], 2, FALSE), "") -> 
A100: 97 | E100: =IF(ISNUMBER(D100), VLOOKUP(D100, Tablica2[], 2, FALSE), "") -> 
A101: 98 | E101: =IF(ISNUMBER(D101), VLOOKUP(D101, Tablica2[], 2, FALSE), "") -> 
A102: 99 | E102: =IF(ISNUMBER(D102), VLOOKUP(D102, Tablica2[], 2, FALSE), "") -> 
A103: 100 | E103: =IF(ISNUMBER(D103), VLOOKUP(D103, Tablica2[], 2, FALSE), "") -> 

Sheet Total
B1: Promet po vrstama
B6: Bukva - drvo | E6: Bagrem - drvo | H6: Hrast - drvo | K6: Paletna bukva - drvo
B7: Kol | C7: Suma | E7: Kol | F7: Suma | H7: Kol | I7: Suma | K7: Kol | L7: Suma
B8: =SUMIFS(Promet!G4:G103,Promet!E4:E103,"Bukva - drvo") -> 2 | C8: =SUMIFS(Promet!H4:H103,Promet!E4:E103,"Bukva - drvo") -> 9400 | E8: =SUMIFS(Promet!G4:G103,Promet!E4:E103,"Bagrem - drvo") -> 7 | F8: =SUMIFS(Promet!H4:H103,Promet!E4:E103,"Bagrem - drvo") -> 32200 | H8: =SUMIFS(Promet!G4:G103,Promet!E4:E103,"Hrast - drvo") -> 5 | I8: =SUMIFS(Promet!H4:H103,Promet!E4:E103,"Hrast - drvo") -> 23500 | K8: =SUMIFS(Promet!G4:G103,Promet!E4:E103,"Paletna bukva - drvo") -> 10 | L8: =SUMIFS(Promet!H4:H103,Promet!E4:E103,"Paletna bukva - drvo") -> 65000
B14: Ukupan Promet | F14: Svega naplaćeno | I14: Svega nenaplaćeno
B15: Kol | C15: Suma | F15: Suma | I15: Suma
B16: =SUM(Promet!G4:G103) -> 24 | C16: =SUM(Promet!H4:H103) -> 130100 | F16: =SUM(Promet!I4:I103) -> 342261 | I16: =SUM(Promet!J4:J103) -> 23100

Sheet AC
B1: Artikli - Cena
B4: R. br. | C4: Artikal | D4: Cena
B5: Stupac1 | C5: Stupac2 | D5: Stupac3
B6: 1 | C6: Bukva - drvo | D6: 4700
B7: 2 | C7: Bagrem - drvo | D7: 4600
B8: 3 | C8: Hrast - drvo | D8: 4700
B9: 4 | C9: Paletna bukva - drvo | D9: 6500
B10: 5 | C10: Ćumur | D10: 3000
B11: 6 | C11: Pesak | D11: 1980
B12: 7
B13: 8
B14: 9
B15: 10
B16: 11
B17: 12
B18: 13
B19: 14
B20: 15
B21: 16
B22: 17
B23: 18
B24: 19
B25: 20

Sheet Podrska
